[Event "*** Titled Tuesday 3|2 Blitz"]
[Site "Chess.com"]
[Date "2016.10.04"]
[Round "4"]
[White "LonesomeGeorge1"]
[Black "stuffings101"]
[Result "1-0"]
[WhiteElo "2182"]
[BlackElo "2133"]
[TimeControl "180+2"]
[EndTime "11:52:49 PDT"]
[Termination "LonesomeGeorge1 won by resignation"]

1. e4 {[%clk 0:03:02]} 1... d6 {[%clk 0:02:51.9]} 2. d4 {[%clk 0:03:02.5]} 2...
Nf6 {[%clk 0:02:50.5]} 3. Nc3 {[%clk 0:03:02.1]} 3... g6 {[%clk 0:02:45]} 4. Be3
{[%clk 0:03:02.1]} 4... a6 {[%clk 0:02:43.8]} 5. a4 {[%clk 0:02:44.6]} 5... Bg7
{[%clk 0:02:42.9]} 6. Qd2 {[%clk 0:02:43]} 6... O-O {[%clk 0:02:42]} 7. Bh6
{[%clk 0:02:26.8]} 7... Nc6 {[%clk 0:02:38.1]} 8. Nf3 {[%clk 0:02:16.8]} 8...
Bg4 {[%clk 0:02:08.5]} 9. Be2 {[%clk 0:01:47.9]} 9... e5 {[%clk 0:02:06.7]} 10.
Bxg7 {[%clk 0:01:43]} 10... Kxg7 {[%clk 0:02:06.7]} 11. dxe5 {[%clk 0:01:39.2]}
11... dxe5 {[%clk 0:02:06.3]} 12. Qxd8 {[%clk 0:00:58.4]} 12... Raxd8 {[%clk
0:02:05.4]} 13. h3 {[%clk 0:00:50.3]} 13... Bxf3 {[%clk 0:02:03.9]} 14. Bxf3
{[%clk 0:00:52.2]} 14... Nd4 {[%clk 0:02:04.9]} 15. Bd1 {[%clk 0:00:53.2]} 15...
c6 {[%clk 0:02:05.8]} 16. f3 {[%clk 0:00:52.8]} 16... Nh5 {[%clk 0:02:00.1]} 17.
Ne2 {[%clk 0:00:38.4]} 17... Nxe2 {[%clk 0:01:45.3]} 18. Bxe2 {[%clk 0:00:40.3]}
18... Nf4 {[%clk 0:01:45.4]} 19. g3 {[%clk 0:00:36.4]} 19... Ne6 {[%clk
0:01:41.3]} 20. Bd3 {[%clk 0:00:34.5]} 20... Nc5 {[%clk 0:01:40.3]} 21. Ke2
{[%clk 0:00:36]} 21... Rd4 {[%clk 0:01:39.7]} 22. a5 {[%clk 0:00:27.3]} 22...
Rfd8 {[%clk 0:01:37.8]} 23. Ra3 {[%clk 0:00:28.4]} 23... Rb4 {[%clk 0:01:34.2]}
24. Rb1 {[%clk 0:00:24.9]} 24... Rbd4 {[%clk 0:01:16.6]} 25. b4 {[%clk
0:00:21.2]} 25... Ne6 {[%clk 0:01:04]} 26. Ke3 {[%clk 0:00:18.5]} 26... h5
{[%clk 0:01:01.9]} 27. h4 {[%clk 0:00:18.6]} 27... g5 {[%clk 0:00:48.3]} 28.
hxg5 {[%clk 0:00:18.6]} 28... Nxg5 {[%clk 0:00:46.3]} 29. Rh1 {[%clk 0:00:16.6]}
29... Kg6 {[%clk 0:00:46.2]} 30. Rb3 {[%clk 0:00:17.5]} 30... Ne6 {[%clk
0:00:45.4]} 31. Rbb1 {[%clk 0:00:15.8]} 31... Ng7 {[%clk 0:00:37.6]} 32. Kd2
{[%clk 0:00:15.8]} 32... f5 {[%clk 0:00:35.3]} 33. Kc3 {[%clk 0:00:16.2]} 33...
fxe4 {[%clk 0:00:29.1]} 34. Bxe4+ {[%clk 0:00:18.1]} 34... Kg5 {[%clk
0:00:28.7]} 35. Rbf1 {[%clk 0:00:12.9]} 35... Kf6 {[%clk 0:00:25.6]} 36. Bd3
{[%clk 0:00:13.5]} 36... Ke7 {[%clk 0:00:23.6]} 37. Re1 {[%clk 0:00:13.2]} 37...
Kf6 {[%clk 0:00:24.5]} 38. Rhf1 {[%clk 0:00:13.5]} 38... Ne6 {[%clk 0:00:22.6]}
39. Rh1 {[%clk 0:00:13.9]} 39... Ng7 {[%clk 0:00:23.3]} 40. Rh2 {[%clk
0:00:14.4]} 40... R4d6 {[%clk 0:00:18.3]} 41. f4 {[%clk 0:00:13]} 41... exf4
{[%clk 0:00:16.9]} 42. gxf4 {[%clk 0:00:14.9]} 42... Rd4 {[%clk 0:00:17.4]} 43.
Rf1 {[%clk 0:00:12.7]} 43... R4d6 {[%clk 0:00:14]} 44. Rg2 {[%clk 0:00:13.8]}
44... Kf7 {[%clk 0:00:13.5]} 45. Rfg1 {[%clk 0:00:14.8]} 45... Ne6 {[%clk
0:00:11.5]} 46. Bg6+ {[%clk 0:00:15.8]} 46... Kf6 {[%clk 0:00:11.9]} 47. f5
{[%clk 0:00:13.6]} 47... Nf4 {[%clk 0:00:12]} 48. Rf2 {[%clk 0:00:14]} 48...
Nd5+ {[%clk 0:00:12]} 49. Kb3 {[%clk 0:00:14.6]} 49... h4 {[%clk 0:00:13.2]} 50.
Bh5 {[%clk 0:00:13.2]} 50... Ne7 {[%clk 0:00:11.2]} 51. Rg4 {[%clk 0:00:12.2]}
51... Rd4 {[%clk 0:00:12.2]} 52. c3 {[%clk 0:00:11.5]} 52... Rxg4 {[%clk
0:00:12.4]} 53. Bxg4 {[%clk 0:00:13.4]} 53... Rd3 {[%clk 0:00:13.1]} 54. Kc4
{[%clk 0:00:13.9]} 54... Rg3 {[%clk 0:00:13.8]} 55. Bh5 {[%clk 0:00:08.7]} 55...
Nd5 {[%clk 0:00:13.8]} 56. Bf3 {[%clk 0:00:07.7]} 56... h3 {[%clk 0:00:14]} 57.
Bxd5 {[%clk 0:00:07.6]} 57... cxd5+ {[%clk 0:00:15.2]} 58. Kxd5 {[%clk
0:00:08.9]} 58... Rg2 {[%clk 0:00:16.6]} 59. Rf3 {[%clk 0:00:09]} 59... h2
{[%clk 0:00:17.7]} 60. Rh3 {[%clk 0:00:10.7]} 60... Kxf5 {[%clk 0:00:18.7]} 61.
Kc5 {[%clk 0:00:11.9]} 61... Kg4 {[%clk 0:00:19.8]} 62. Rh7 {[%clk 0:00:12.6]}
62... Rc2 {[%clk 0:00:20.7]} 63. Kb6 {[%clk 0:00:13.7]} 63... Kg3 {[%clk
0:00:20.7]} 64. Kxb7 {[%clk 0:00:14.8]} 64... Rc1 {[%clk 0:00:21.5]} 65. Kxa6
{[%clk 0:00:15.5]} 65... Rxc3 {[%clk 0:00:22.3]} 66. b5 {[%clk 0:00:16.1]} 66...
Rc1 {[%clk 0:00:22.3]} 67. b6 {[%clk 0:00:16.3]} 67... h1=Q {[%clk 0:00:23.6]}
68. Rxh1 {[%clk 0:00:17.3]} 68... Rxh1 {[%clk 0:00:25.5]} 69. b7 {[%clk
0:00:19.2]} 69... Rb1 {[%clk 0:00:24.3]} 70. Ka7 {[%clk 0:00:19.8]} 70... Kf4
{[%clk 0:00:24.4]} 71. b8=Q+ {[%clk 0:00:20.7]} 71... Rxb8 {[%clk 0:00:23.2]}
72. Kxb8 {[%clk 0:00:22.6]} 1-0

[Event "*** Titled Tuesday 3|2 Blitz"]
[Site "Chess.com"]
[Date "2016.10.04"]
[Round "4"]
[White "Spas_Kozhuharov"]
[Black "OparinGrigoriy"]
[Result "1/2-1/2"]
[WhiteElo "2478"]
[BlackElo "2586"]
[TimeControl "180+2"]
[EndTime "11:53:22 PDT"]
[Termination "Game drawn by repetition"]

1. d4 {[%clk 0:03:01.9]} 1... Nf6 {[%clk 0:02:59.9]} 2. c4 {[%clk 0:03:01.7]}
2... c5 {[%clk 0:03:01.4]} 3. d5 {[%clk 0:03:02.4]} 3... b5 {[%clk 0:03:01.9]}
4. cxb5 {[%clk 0:03:03.4]} 4... a6 {[%clk 0:03:03.6]} 5. bxa6 {[%clk 0:03:05.3]}
5... g6 {[%clk 0:03:04.4]} 6. Nc3 {[%clk 0:03:07.2]} 6... Bg7 {[%clk 0:03:06]}
7. e4 {[%clk 0:03:07.2]} 7... O-O {[%clk 0:03:07.5]} 8. Nf3 {[%clk 0:03:08.3]}
8... Qa5 {[%clk 0:03:08.5]} 9. Bd2 {[%clk 0:03:08.5]} 9... Bxa6 {[%clk 0:03:09]}
10. Be2 {[%clk 0:03:07.3]} 10... Bxe2 {[%clk 0:03:06.7]} 11. Qxe2 {[%clk
0:03:07.9]} 11... d6 {[%clk 0:03:07.4]} 12. O-O {[%clk 0:03:07.5]} 12... Qa6
{[%clk 0:03:09]} 13. Rfe1 {[%clk 0:02:47.1]} 13... Qxe2 {[%clk 0:03:01.8]} 14.
Rxe2 {[%clk 0:02:49]} 14... Nfd7 {[%clk 0:03:03.5]} 15. Bf4 {[%clk 0:02:47]}
15... Bxc3 {[%clk 0:02:48.2]} 16. bxc3 {[%clk 0:02:47.5]} 16... Ra4 {[%clk
0:02:49.6]} 17. Bh6 {[%clk 0:02:39.1]} 17... Rc8 {[%clk 0:02:50.3]} 18. e5
{[%clk 0:02:40]} 18... Nf8 {[%clk 0:01:53.8]} 19. exd6 {[%clk 0:02:32.7]} 19...
exd6 {[%clk 0:01:55.7]} 20. g3 {[%clk 0:02:21]} 20... Nbd7 {[%clk 0:01:55.3]}
21. Rae1 {[%clk 0:02:16.6]} 21... Rca8 {[%clk 0:01:48.1]} 22. Ng5 {[%clk
0:02:15.2]} 22... Ne5 {[%clk 0:01:34.8]} 23. Kg2 {[%clk 0:02:08.3]} 23... Rxa2
{[%clk 0:01:32.2]} 24. Ne4 {[%clk 0:01:57.6]} 24... Nfd7 {[%clk 0:00:58.6]} 25.
Nxd6 {[%clk 0:01:54.2]} 25... f6 {[%clk 0:00:58.3]} 26. h3 {[%clk 0:01:38.3]}
26... Rxe2 {[%clk 0:00:47.5]} 27. Rxe2 {[%clk 0:01:38.7]} 27... Ra6 {[%clk
0:00:49.2]} 28. Ne4 {[%clk 0:01:35.7]} 28... Kf7 {[%clk 0:00:48.9]} 29. Bf4
{[%clk 0:01:34.6]} 29... c4 {[%clk 0:00:41.4]} 30. Bxe5 {[%clk 0:01:18.6]} 30...
Nxe5 {[%clk 0:00:43.3]} 31. Rb2 {[%clk 0:01:19.3]} 31... g5 {[%clk 0:00:44.5]}
32. f4 {[%clk 0:01:05.1]} 32... gxf4 {[%clk 0:00:45.2]} 33. gxf4 {[%clk
0:01:07]} 33... Nd3 {[%clk 0:00:43.7]} 34. Rb7+ {[%clk 0:01:07.9]} 34... Kg6
{[%clk 0:00:43.4]} 35. Kf3 {[%clk 0:01:08.7]} 35... Ra2 {[%clk 0:00:31]} 36. d6
{[%clk 0:00:53.7]} 36... Ne1+ {[%clk 0:00:31.4]} 37. Ke3 {[%clk 0:00:51.8]}
37... Nc2+ {[%clk 0:00:32.3]} 38. Kf3 {[%clk 0:00:39.8]} 38... Ne1+ {[%clk
0:00:32.8]} 39. Ke3 {[%clk 0:00:35]} 39... Nc2+ {[%clk 0:00:32.7]} 40. Kd2
{[%clk 0:00:36.3]} 40... Nd4+ {[%clk 0:00:31.2]} 41. Kc1 {[%clk 0:00:36.2]}
41... Nb3+ {[%clk 0:00:29.6]} 42. Kb1 {[%clk 0:00:36]} 42... Ra8 {[%clk
0:00:30.1]} 43. d7 {[%clk 0:00:35.4]} 43... Rd8 {[%clk 0:00:31.4]} 44. Kb2
{[%clk 0:00:24.2]} 44... Kf5 {[%clk 0:00:28.9]} 45. Nd6+ {[%clk 0:00:17.6]}
45... Ke6 {[%clk 0:00:30.4]} 46. Nxc4 {[%clk 0:00:19.5]} 46... Nc5 {[%clk
0:00:31.3]} 47. Rc7 {[%clk 0:00:18.9]} 47... Nxd7 {[%clk 0:00:29.6]} 48. Ne3
{[%clk 0:00:19.9]} 48... Rg8 {[%clk 0:00:21.1]} 49. f5+ {[%clk 0:00:18.9]} 49...
Kd6 {[%clk 0:00:21.7]} 50. Ra7 {[%clk 0:00:20]} 50... Ne5 {[%clk 0:00:18.9]} 51.
Ra6+ {[%clk 0:00:19.7]} 51... Nc6 {[%clk 0:00:20]} 52. Ng4 {[%clk 0:00:18.7]}
52... Rg5 {[%clk 0:00:16.2]} 53. Nxf6 {[%clk 0:00:19.1]} 53... Rxf5 {[%clk
0:00:17.1]} 54. Ne4+ {[%clk 0:00:20.5]} 54... Kc7 {[%clk 0:00:18.2]} 55. Kb3
{[%clk 0:00:19.8]} 55... Rh5 {[%clk 0:00:16.9]} 56. Nf6 {[%clk 0:00:17.3]} 56...
Rxh3 {[%clk 0:00:16.8]} 57. Nd5+ {[%clk 0:00:18.8]} 57... Kd7 {[%clk 0:00:17.9]}
58. Nf6+ {[%clk 0:00:19.5]} 58... Kd6 {[%clk 0:00:17.7]} 59. Ne4+ {[%clk
0:00:19.4]} 59... Kd5 {[%clk 0:00:17]} 60. Nf6+ {[%clk 0:00:20.4]} 60... Kc5
{[%clk 0:00:17.9]} 61. Nd7+ {[%clk 0:00:20]} 61... Kd6 {[%clk 0:00:17.9]} 62.
Nb8 {[%clk 0:00:20.5]} 62... Kc7 {[%clk 0:00:19.3]} 63. Nxc6 {[%clk 0:00:21.2]}
63... Rh6 {[%clk 0:00:20]} 64. Nb4 {[%clk 0:00:17.3]} 64... Rxa6 {[%clk
0:00:21.4]} 65. Nxa6+ {[%clk 0:00:19.2]} 65... Kd6 {[%clk 0:00:23.3]} 66. Nb4
{[%clk 0:00:20.1]} 66... h5 {[%clk 0:00:24.6]} 67. Nd3 {[%clk 0:00:21.6]} 67...
h4 {[%clk 0:00:24.7]} 68. c4 {[%clk 0:00:23.1]} 68... h3 {[%clk 0:00:25]} 69.
Kb4 {[%clk 0:00:24.5]} 69... h2 {[%clk 0:00:26.3]} 70. Nf2 {[%clk 0:00:26.1]}
70... Ke5 {[%clk 0:00:28]} 71. c5 {[%clk 0:00:28]} 71... Kd4 {[%clk 0:00:29.4]}
72. c6 {[%clk 0:00:29.1]} 72... Ke3 {[%clk 0:00:30.7]} 73. Nh1 {[%clk
0:00:30.7]} 73... Kf3 {[%clk 0:00:31.5]} 74. c7 {[%clk 0:00:32.6]} 74... Kg2
{[%clk 0:00:33.4]} 75. c8=Q {[%clk 0:00:34.5]} 75... Kxh1 {[%clk 0:00:35]} 76.
Qh3 {[%clk 0:00:32.6]} 76... Kg1 {[%clk 0:00:35.4]} 77. Qg3+ {[%clk 0:00:33.6]}
77... Kh1 {[%clk 0:00:36.7]} 78. Qh4 {[%clk 0:00:29.7]} 78... Kg2 {[%clk
0:00:37.2]} 79. Qg4+ {[%clk 0:00:30.4]} 79... Kf2 {[%clk 0:00:38.1]} 80. Qf4+
{[%clk 0:00:31]} 80... Kg2 {[%clk 0:00:39.4]} 81. Qe4+ {[%clk 0:00:32.1]} 81...
Kg1 {[%clk 0:00:39.9]} 82. Qg4+ {[%clk 0:00:29.5]} 82... Kf2 {[%clk 0:00:40.5]}
83. Qh3 {[%clk 0:00:30.2]} 83... Kg1 {[%clk 0:00:42]} 84. Qg3+ {[%clk 0:00:23]}
84... Kh1 {[%clk 0:00:42.3]} 85. Qf4 {[%clk 0:00:04.7]} 85... Kg2 {[%clk
0:00:42]} 86. Qe4+ {[%clk 0:00:05.7]} 86... Kg1 {[%clk 0:00:42.7]} 87. Qe3+
{[%clk 0:00:07.6]} 87... Kg2 {[%clk 0:00:43.9]} 88. Qe4+ {[%clk 0:00:09.5]}
88... Kg1 {[%clk 0:00:45.3]} 1/2-1/2

[Event "*** Titled Tuesday 3|2 Blitz"]
[Site "Chess.com"]
[Date "2016.10.04"]
[Round "5"]
[White "Semetey"]
[Black "stefanodinn"]
[Result "1-0"]
[WhiteElo "2425"]
[BlackElo "2222"]
[TimeControl "180+2"]
[EndTime "11:55:36 PDT"]
[Termination "Semetey won by resignation"]

1. d4 {[%clk 0:03:00.9]} 1... Nf6 {[%clk 0:02:57.4]} 2. c4 {[%clk 0:03:02.3]}
2... e6 {[%clk 0:02:58.3]} 3. Nc3 {[%clk 0:03:03.7]} 3... Bb4 {[%clk 0:02:57.7]}
4. e3 {[%clk 0:03:04.5]} 4... b6 {[%clk 0:02:53.3]} 5. Ne2 {[%clk 0:03:05.7]}
5... Ba6 {[%clk 0:02:52.9]} 6. a3 {[%clk 0:03:06.8]} 6... Bxc3+ {[%clk 0:02:54]}
7. Nxc3 {[%clk 0:03:08.4]} 7... d5 {[%clk 0:02:51.1]} 8. b3 {[%clk 0:03:08.1]}
8... Nc6 {[%clk 0:02:22.8]} 9. Be2 {[%clk 0:03:08.7]} 9... Na5 {[%clk
0:01:58.6]} 10. b4 {[%clk 0:03:09.8]} 10... Nxc4 {[%clk 0:01:57]} 11. Qa4+
{[%clk 0:03:10.8]} 1-0

[Event "*** Titled Tuesday 3|2 Blitz"]
[Site "Chess.com"]
[Date "2016.10.04"]
[Round "5"]
[White "Drags95"]
[Black "GM_Levan_Pantsulaia"]
[Result "0-1"]
[WhiteElo "2378"]
[BlackElo "2490"]
[TimeControl "180+2"]
[EndTime "11:55:51 PDT"]
[Termination "GM_Levan_Pantsulaia won by resignation"]

1. d4 {[%clk 0:02:56.5]} 1... Nf6 {[%clk 0:03:00.1]} 2. c4 {[%clk 0:02:57.5]}
2... c5 {[%clk 0:03:01.1]} 3. d5 {[%clk 0:02:58.3]} 3... e6 {[%clk 0:03:01.3]}
4. Nc3 {[%clk 0:02:58.2]} 4... exd5 {[%clk 0:03:02.5]} 5. cxd5 {[%clk
0:03:00.1]} 5... d6 {[%clk 0:03:04]} 6. e4 {[%clk 0:03:00.6]} 6... g6 {[%clk
0:03:05.3]} 7. Nf3 {[%clk 0:03:01.7]} 7... Bg7 {[%clk 0:03:06.3]} 8. Nd2 {[%clk
0:03:03.3]} 8... a6 {[%clk 0:03:06.4]} 9. Be2 {[%clk 0:03:04.8]} 9... b5 {[%clk
0:03:06.4]} 10. a3 {[%clk 0:03:04.7]} 10... O-O {[%clk 0:03:07.3]} 11. O-O
{[%clk 0:03:05.9]} 11... Re8 {[%clk 0:03:07.9]} 12. Re1 {[%clk 0:03:06.8]} 12...
Nbd7 {[%clk 0:03:08]} 13. Bf1 {[%clk 0:03:05.9]} 13... Bb7 {[%clk 0:02:56.4]}
14. h3 {[%clk 0:02:55.6]} 14... Qe7 {[%clk 0:02:57]} 15. Rb1 {[%clk 0:02:56.2]}
15... Nxd5 {[%clk 0:02:55.2]} 16. Nxd5 {[%clk 0:02:55.2]} 16... Bxd5 {[%clk
0:02:55.5]} 17. Nf3 {[%clk 0:02:57.1]} 17... Bb7 {[%clk 0:02:41.2]} 18. Bf4
{[%clk 0:02:56.8]} 18... Ne5 {[%clk 0:02:36.5]} 0-1

[Event "*** Titled Tuesday 3|2 Blitz"]
[Site "Chess.com"]
[Date "2016.10.04"]
[Round "5"]
[White "FLchessplayer"]
[Black "cstefan"]
[Result "0-1"]
[WhiteElo "2027"]
[BlackElo "2023"]
[TimeControl "180+2"]
[EndTime "11:57:46 PDT"]
[Termination "cstefan won by resignation"]

1. d4 {[%clk 0:03:02]} 1... Nf6 {[%clk 0:03:00.3]} 2. Nf3 {[%clk 0:03:03.1]}
2... e6 {[%clk 0:03:01]} 3. Bg5 {[%clk 0:02:59.6]} 3... c5 {[%clk 0:03:01.5]} 4.
c3 {[%clk 0:02:57.3]} 4... h6 {[%clk 0:03:02.1]} 5. Bh4 {[%clk 0:02:56.2]} 5...
b6 {[%clk 0:03:02.2]} 6. Nbd2 {[%clk 0:02:55.9]} 6... Bb7 {[%clk 0:03:02.9]} 7.
e3 {[%clk 0:02:55.2]} 7... cxd4 {[%clk 0:03:03.6]} 8. exd4 {[%clk 0:02:55.3]}
8... Be7 {[%clk 0:03:05.5]} 9. Bd3 {[%clk 0:02:55.4]} 9... a6 {[%clk 0:03:06.5]}
10. O-O {[%clk 0:02:56.2]} 10... O-O {[%clk 0:03:07.7]} 11. Re1 {[%clk
0:02:57.2]} 11... d6 {[%clk 0:03:08.8]} 12. Qe2 {[%clk 0:02:57.8]} 12... Nbd7
{[%clk 0:03:07]} 13. Rad1 {[%clk 0:02:57.9]} 13... b5 {[%clk 0:03:07.1]} 14. Bb1
{[%clk 0:02:57.2]} 14... Re8 {[%clk 0:03:07]} 15. Qd3 {[%clk 0:02:57.6]} 15...
Nf8 {[%clk 0:03:07.8]} 16. Bg3 {[%clk 0:02:53.3]} 16... Qb6 {[%clk 0:03:08.2]}
17. Qe2 {[%clk 0:02:51.9]} 17... Rac8 {[%clk 0:03:06.7]} 18. a3 {[%clk
0:02:50.2]} 18... a5 {[%clk 0:03:07.5]} 19. Ne4 {[%clk 0:02:50.1]} 19... Nxe4
{[%clk 0:03:06.7]} 20. Bxe4 {[%clk 0:02:50.7]} 20... Bxe4 {[%clk 0:03:08.3]} 21.
Qxe4 {[%clk 0:02:51.5]} 21... b4 {[%clk 0:03:09.6]} 22. axb4 {[%clk 0:02:51.1]}
22... axb4 {[%clk 0:03:11.5]} 23. Rc1 {[%clk 0:02:51.5]} 23... bxc3 {[%clk
0:03:12.2]} 24. bxc3 {[%clk 0:02:51.8]} 24... d5 {[%clk 0:03:10.6]} 25. Qe3
{[%clk 0:02:46.9]} 25... Nd7 {[%clk 0:03:04.1]} 26. Rb1 {[%clk 0:02:47.2]} 26...
Qa6 {[%clk 0:02:58]} 27. Rec1 {[%clk 0:02:47.1]} 27... Rc4 {[%clk 0:02:56.8]}
28. h3 {[%clk 0:02:39.2]} 28... Rec8 {[%clk 0:02:56.7]} 29. Rb3 {[%clk
0:02:39.7]} 29... Qc6 {[%clk 0:02:41.2]} 30. Ne5 {[%clk 0:02:29.3]} 30... Nxe5
{[%clk 0:02:41.4]} 31. Bxe5 {[%clk 0:02:30.3]} 31... Bd6 {[%clk 0:02:36.3]} 32.
Bxd6 {[%clk 0:02:24.8]} 32... Qxd6 {[%clk 0:02:38.2]} 33. Qd3 {[%clk 0:02:23.9]}
33... Qf4 {[%clk 0:02:36.2]} 34. Rcb1 {[%clk 0:02:23.1]} 34... g6 {[%clk
0:02:34.6]} 35. Rb8 {[%clk 0:02:21.7]} 35... Rxb8 {[%clk 0:02:34.4]} 36. Rxb8+
{[%clk 0:02:22]} 36... Qxb8 {[%clk 0:02:36.3]} 0-1

[Event "*** Titled Tuesday 3|2 Blitz"]
[Site "Chess.com"]
[Date "2016.10.04"]
[Round "5"]
[White "Spas_Kozhuharov"]
[Black "dretch"]
[Result "0-1"]
[WhiteElo "2473"]
[BlackElo "2633"]
[TimeControl "180+2"]
[EndTime "11:58:21 PDT"]
[Termination "dretch won by resignation"]

1. c4 {[%clk 0:03:01.9]} 1... c6 {[%clk 0:02:58.9]} 2. e4 {[%clk 0:03:00.3]}
2... d5 {[%clk 0:02:59.8]} 3. exd5 {[%clk 0:03:00.8]} 3... cxd5 {[%clk
0:03:01.7]} 4. cxd5 {[%clk 0:03:01.6]} 4... Nf6 {[%clk 0:03:02.9]} 5. Qa4+
{[%clk 0:03:02.3]} 5... Nbd7 {[%clk 0:03:02.8]} 6. Nc3 {[%clk 0:03:03.2]} 6...
g6 {[%clk 0:03:00.6]} 7. Bc4 {[%clk 0:03:04.5]} 7... Bg7 {[%clk 0:03:01.1]} 8.
Nf3 {[%clk 0:03:06]} 8... O-O {[%clk 0:03:01.9]} 9. d3 {[%clk 0:03:07.4]} 9...
Nb6 {[%clk 0:03:01.2]} 10. Qb3 {[%clk 0:03:07.9]} 10... Bg4 {[%clk 0:02:49.9]}
11. Ne5 {[%clk 0:03:08.4]} 11... Bf5 {[%clk 0:02:45.7]} 12. O-O {[%clk
0:03:07.5]} 12... Ne8 {[%clk 0:02:43.6]} 13. Re1 {[%clk 0:03:06]} 13... Nd6
{[%clk 0:02:42.6]} 14. Bf4 {[%clk 0:02:57.1]} 14... Rc8 {[%clk 0:02:40.4]} 15.
h3 {[%clk 0:02:47.8]} 15... Bxe5 {[%clk 0:02:19.2]} 16. Bxe5 {[%clk 0:02:46.7]}
16... Ndxc4 {[%clk 0:02:18.6]} 17. dxc4 {[%clk 0:02:48.6]} 17... Nxc4 {[%clk
0:02:08.7]} 18. Qxb7 {[%clk 0:02:44.4]} 18... Nxe5 {[%clk 0:02:09.6]} 19. Rxe5
{[%clk 0:02:44.6]} 19... Rc7 {[%clk 0:02:10.5]} 20. Qb4 {[%clk 0:02:42.5]} 20...
Qb8 {[%clk 0:02:05.6]} 21. Qxb8 {[%clk 0:02:31.6]} 21... Rxb8 {[%clk 0:02:05.9]}
22. Re2 {[%clk 0:02:31.6]} 22... Rb4 {[%clk 0:01:58.2]} 23. Rd1 {[%clk
0:02:20.8]} 23... Rcb7 {[%clk 0:01:53.9]} 24. g4 {[%clk 0:02:19.9]} 24... Bd7
{[%clk 0:01:47.7]} 25. b3 {[%clk 0:02:10.9]} 25... Kf8 {[%clk 0:01:46.8]} 26.
Ne4 {[%clk 0:02:09.7]} 26... Bb5 {[%clk 0:01:38.3]} 27. Rc2 {[%clk 0:02:05.5]}
27... Rxe4 {[%clk 0:01:38.2]} 0-1

[Event "*** Titled Tuesday 3|2 Blitz"]
[Site "Chess.com"]
[Date "2016.10.04"]
[Round "5"]
[White "LyonBeast"]
[Black "mwpchess"]
[Result "1/2-1/2"]
[WhiteElo "2721"]
[BlackElo "2469"]
[TimeControl "180+2"]
[EndTime "11:59:06 PDT"]
[Termination "Game drawn by repetition"]

1. e4 {[%clk 0:03:02]} 1... c6 {[%clk 0:03:00.5]} 2. d4 {[%clk 0:03:02.2]} 2...
d5 {[%clk 0:03:01.2]} 3. e5 {[%clk 0:03:03.1]} 3... Bf5 {[%clk 0:03:01.8]} 4. h4
{[%clk 0:03:03.8]} 4... h5 {[%clk 0:03:00.3]} 5. c4 {[%clk 0:03:03.6]} 5... e6
{[%clk 0:03:00.4]} 6. Nc3 {[%clk 0:03:04.6]} 6... Ne7 {[%clk 0:02:59.7]} 7. Nge2
{[%clk 0:03:05.1]} 7... Nd7 {[%clk 0:02:57.9]} 8. Bg5 {[%clk 0:03:04.6]} 8...
Bg4 {[%clk 0:02:40.1]} 9. Qb3 {[%clk 0:02:55.2]} 9... Qb6 {[%clk 0:02:36.2]} 10.
c5 {[%clk 0:02:53.3]} 10... Qxb3 {[%clk 0:02:26.1]} 11. axb3 {[%clk 0:02:55.2]}
11... a6 {[%clk 0:02:26.5]} 12. b4 {[%clk 0:02:54]} 12... Bxe2 {[%clk
0:02:23.3]} 13. Bxe2 {[%clk 0:02:54.1]} 13... Rc8 {[%clk 0:02:24]} 14. Bxe7
{[%clk 0:02:44.2]} 14... Bxe7 {[%clk 0:02:23.4]} 15. g3 {[%clk 0:02:44.2]} 15...
g6 {[%clk 0:02:21.9]} 16. f4 {[%clk 0:02:34.1]} 16... f5 {[%clk 0:02:13.7]} 17.
exf6 {[%clk 0:02:31.7]} 17... Bxf6 {[%clk 0:02:14.5]} 18. Rd1 {[%clk 0:02:32.2]}
18... Kf7 {[%clk 0:02:12.5]} 19. Kf2 {[%clk 0:02:32.7]} 19... Bg7 {[%clk
0:02:02.1]} 20. Rhe1 {[%clk 0:02:32.5]} 20... Nf6 {[%clk 0:02:02.4]} 21. Bf1
{[%clk 0:02:34.1]} 21... Rhe8 {[%clk 0:01:59.4]} 22. Bh3 {[%clk 0:02:34.8]}
22... Rc7 {[%clk 0:01:56.9]} 23. Kf3 {[%clk 0:02:36.2]} 23... Rce7 {[%clk
0:01:50.8]} 24. Re3 {[%clk 0:02:35.6]} 24... Ng8 {[%clk 0:01:46.3]} 25. Ne2
{[%clk 0:01:59]} 25... Nh6 {[%clk 0:01:46.4]} 26. Ra1 {[%clk 0:01:54.3]} 26...
Nf5 {[%clk 0:01:46.2]} 27. Bxf5 {[%clk 0:01:51.8]} 27... exf5 {[%clk 0:01:46.4]}
28. Rxe7+ {[%clk 0:01:48.2]} 28... Rxe7 {[%clk 0:01:47.1]} 29. Rd1 {[%clk
0:01:44.4]} 29... Re4 {[%clk 0:01:47.5]} 30. Rd3 {[%clk 0:01:44.6]} 30... Bf6
{[%clk 0:01:47.3]} 31. Rd1 {[%clk 0:01:39.9]} 31... Ke7 {[%clk 0:01:45.6]} 32.
Rd3 {[%clk 0:01:40]} 32... Kd7 {[%clk 0:01:46.2]} 33. Rd1 {[%clk 0:01:41.2]}
33... Kc7 {[%clk 0:01:47.3]} 34. Rd3 {[%clk 0:01:42.6]} 34... Kc8 {[%clk
0:01:48.2]} 35. Rd1 {[%clk 0:01:43.7]} 35... Kc7 {[%clk 0:01:49.5]} 36. Rd3
{[%clk 0:01:45]} 36... Kc8 {[%clk 0:01:50.7]} 37. Rd1 {[%clk 0:01:46.7]} 37...
Kc7 {[%clk 0:01:51.8]} 38. Rd3 {[%clk 0:01:48.3]} 38... Kc8 {[%clk 0:01:53.1]}
39. Rd1 {[%clk 0:01:49.7]} 39... Kc7 {[%clk 0:01:54.4]} 40. Rd3 {[%clk 0:01:51]}
40... Kc8 {[%clk 0:01:55.7]} 1/2-1/2